Cogmind - Beta 16 @@@ ROGUE MODE // 2026.02.02 @ 20:23:44 Player: Charleston314 Result: Destroyed by G-34 Mercenary with Small Laser Performance ------------- Evolutions (1) 500 Regions Visited (4) 800 Robots Destroyed (35) 175 Value Destroyed (966) 966 Prototype IDs (3) 60 Alien Tech Used (0) 0 Bonus (410) 410 TOTAL SCORE: 2911 Bonus ------- High Alert Combat Kills 87 Follower Combat Kills 323 Cogmind --------- Core Integrity 0/400 Matter 126/300 Energy 99/100 System Corruption 0% Temperature Cool (6) Movement Core (50) Location -9/Storage Parts ------- > --- POWER (1) -------- (None) > --- PROPULSION (4) --- (None) > --- UTILITY (2) ------ (None) > --- WEAPON (2) ------- (None) > --- INVENTORY (5) ---- Ion Engine Improved Ion Engine Improved Ion Engine Improved Heat Sink Light Armor Plating Peak State ------------ > --- POWER ------------ Improved Ion Engine > --- PROPULSION ------- Aluminum Leg Aluminum Leg Aluminum Leg Improved Aluminum Leg > --- UTILITY ---------- Medium Storage Unit Core Shielding > --- WEAPON ----------- Improved EM Shotgun Grenade Launcher > --- INVENTORY -------- Ion Engine Improved Ion Engine Improved Ion Engine Light Treads Light Treads Compact Wheel Flight Unit Improved Heat Sink Light Armor Plating [Rating: 14] Favorites ----------- Power Ion Engine Engine Ion Engine Propulsion Compact Wheel Treads Light Treads Leg Aluminum Leg Wheel Compact Wheel Flight Unit Flight Unit Utility Medium Storage Unit Device Seismic Detector Storage Medium Storage Unit Processor Targeting Computer Protection Core Shielding Weapon Light Cannon Energy Gun Improved EM Shotgun Energy Cannon Advanced Beam Cannon Ballistic Gun Assault Rifle Ballistic Cannon Light Cannon Launcher Grenade Launcher Build | -11 -10 -10 -9 -9 ------- Run | Yrd Mat Min Mat Sto Slots Evolved 2 | . . . 2 . Power . | . . . . . Propulsion 2 | . . . 2 . Utility . | . . . . . Weapon . | . . . . . Parts Attached 32 | 6 6 4 . 16 Power 2 | 1 . . . 1 Engine 2 | 1 . . . 1 Core . | . . . . . Reactor . | . . . . . Propulsion 12 | 2 2 1 . 7 Treads 1 | . . . . 1 Leg 4 | . . . . 4 Wheel 6 | 2 2 1 . 1 Hover . | . . . . . Flight 1 | . . . . 1 Utility 9 | 1 2 2 . 4 Device 2 | . . 1 . 1 Storage 3 | 1 2 . . . Processor 1 | . . 1 . . Hackware . | . . . . . Protection 3 | . . . . 3 Artifact . | . . . . . Weapon 9 | 2 2 1 . 4 Energy Gun 2 | . . . . 2 Energy Cannon 1 | . . . . 1 Ballistic Gun 2 | 2 . . . . Ballistic Cannon 3 | . 2 . . 1 Launcher 1 | . . 1 . . Special Weapon . | . . . . . Impact Weapon . | . . . . . Slashing Weapon . | . . . . . Piercing Weapon . | . . . . . Special Melee Weapon . | . . . . . Unidentified Prototypes 1 | . . . . 1 Parts Lost 11 | . 1 1 . 9 Power 1 | . . . . 1 Propulsion 3 | . 1 . . 2 Utility 1 | . . . . 1 Weapon 6 | . . 1 . 5 Highest Loss Streak 6 | . 1 1 . 6 To Critical Strikes . | . . . . . Average Backups 7 | 3 7 6 7 8 Power 1 | . 1 1 1 2 Propulsion 2 | 1 3 2 3 2 Utility . | . . . 1 1 Weapon 2 | 1 2 2 2 1 Tool/Special . | . . . . . Unused Backups 9 | . 3 . . 6 Power 3 | . . . . 3 Propulsion 5 | . 3 . . 2 Utility . | . . . . . Weapon 1 | . . . . 1 Tool/Special . | . . . . . Average Slot Usage (%) 89 | . 85 100 77 83 Engine 12 | . 14 14 11 10 Leg 5 | . . . . 12 Wheel 24 | . 28 28 22 19 Device 5 | . . 8 . 5 Storage 12 | . 14 14 11 11 Processor 2 | . . 5 11 1 Protection 1 | . . . . 3 Energy Gun 5 | . . . . 12 Ballistic Gun 6 | . 11 8 11 1 Ballistic Cannon 8 | . 16 14 . . Launcher 3 | . . 4 11 3 Peak Build Rating 14 | 6 7 9 8 14 Average Rating 9 | 3 6 8 7 11 On Entrance 5 | . 6 7 7 8 Avg Prop Armor Cover (%) . | . . . . . Naked Turns 3 | . . . . 3 Heaviest Build 25 | 13 21 22 20 25 Greatest Support 48 | 26 26 32 32 48 Greatest Overweight (x) 1 | . . . . 1 Average Overweight (x) . | . . . . . Largest Inventory Capacity 10 | 8 10 10 10 10 Average Capacity 9 | 7 9 10 10 9 Most Carried 10 | 8 8 8 9 10 Average Carried 7 | 3 7 6 7 8 Final Capacity 10 | 8 10 10 10 5 Final Carried 9 | 6 8 7 9 5 Class Distribution -------------------- 83% | Mutant 16% | Scavenger-Mutant Dominant Class ---------------- Mutant | -10/Materials Mutant | -10/Mines Mutant | -9/Materials Mutant | -9/Storage Resources | -11 -10 -10 -9 -9 ----------- Run | Yrd Mat Min Mat Sto Matter Collected 765 | 215 167 174 16 193 Remotely . | . . . . . Salvage Created 1018 | . 118 93 47 760 Parts 64 | . 7 7 5 45 Haulers Intercepted 2 | . . . . 2 Recyclers Shooed 3 | . 1 . . 2 Parts Field Recycled . | . . . . . Retrieved Matter . | . . . . . Parts Self-Destructed . | . . . . . Prevented . | . . . . . Parts Restored . | . . . . . Kills | -11 -10 -10 -9 -9 ------- Run | Yrd Mat Min Mat Sto Combat Hostiles Destroyed 25 | . 5 2 1 17 Guns 6 | . 3 . . 3 Cannons 8 | . 2 2 . 4 AOE 11 | . . . 1 10 Classes Destroyed 10 | . 2 1 1 6 Worker 6 | . . 1 . 5 Builder 1 | . . . . 1 Hauler 2 | . . . . 2 Recycler 1 | . . . . 1 Swarmer 3 | . 3 . . . Grunt 14 | . 2 2 . 10 Brawler 1 | . . . . 1 Duelist 1 | . . . . 1 Protector 1 | . . . . 1 Sentry 5 | . . . 1 4 Best Kill Streak 21 | . 3 3 1 21 Combat Bots Only 13 | . 3 2 1 13 Max Kills in Single Turn 6 | . 1 1 1 6 Gunslinging . | . . . . . Exploded 2 | . . . 1 2 Melee . | . . . . . Uniques/NPCs Destroyed . | . . . . . Combat | -11 -10 -10 -9 -9 -------- Run | Yrd Mat Min Mat Sto Hostile Shots Fired 138 | . 34 17 4 83 Missed 42 | . 8 5 2 27 Hits 96 | . 26 12 2 56 Melee 17 | . . . . 17 Projectile 79 | . 26 12 2 39 AOE 6 | . . 6 . . Critical Strikes 9 | . 1 1 . 7 Damage Taken 1930 | . 327 323 28 1252 Core 582 | . 66 110 . 406 Absorbed by Shields . | . . . . . Redirected to Shielding 10 | . . . . 10 Core Remaining (%) 64 | 100 . 29 . . Volleys Fired 72 | . 18 12 2 40 Largest 2 | . 2 2 2 2 Hottest 98 | . 60 60 50 98 Shots Fired 120 | . 36 22 3 59 Gun 43 | . 18 . 2 23 Cannon 58 | . 18 22 . 18 Launcher 19 | . . . 1 18 Special . | . . . . . Kinetic 74 | . 36 22 2 14 Thermal 12 | . . . . 12 Explosive 19 | . . . 1 18 Electromagnetic 15 | . . . . 15 Robot Hit Streak 9 | . 3 3 4 9 Robot Miss Streak 9 | . 9 2 . 4 Penetration Max . | . . . . . Secondary Targets 2 | . 2 . . . Max Gunslinging Chain 1 | . 1 . . . Shots Hit Robots 75 | . 15 11 3 46 Core Hits 66 | . 8 6 2 50 Critical Kills . | . . . . . Critical Parts Destroyed . | . . . . . Critical Strikes . | . . . . . Melee Attacks . | . . . . . Impact . | . . . . . Slashing . | . . . . . Piercing . | . . . . . Sneak Attacks . | . . . . . Combat Hostiles . | . . . . . Follow-up Attacks . | . . . . . Damage Inflicted 2148 | . 208 194 44 1702 Guns 448 | . 120 . 23 305 Cannons 529 | . 88 194 . 247 Explosions 1168 | . . . 21 1147 Melee . | . . . . . Ramming 3 | . . . . 3 Kinetic 558 | . 208 194 23 133 Thermal 163 | . . . . 163 Explosive 1168 | . . . 21 1147 Electromagnetic 256 | . . . . 256 Impact . | . . . . . Slashing . | . . . . . Piercing . | . . . . . Highest Corruption . | . . . . . Average Corruption . | . . . . . Corruption Purged . | . . . . . Corruption Blocked . | . . . . . Overload Shots . | . . . . . Overflow Damage 9 | . . . . 9 Projectiles . | . . . . . Explosions 9 | . . . . 9 Melee . | . . . . . Knockbacks 8 | . 1 4 . 3 Impact . | . . . . . Kinetic 7 | . 1 3 . 3 Secondary 1 | . . 1 . . Self-Inflicted Damage 39 | . . . . 39 Shots 2 | . . . . 2 Rammed . | . . . . . Targets Rammed 1 | . . . . 1 Kicked 1 | . . . . 1 Crushed . | . . . . . Highest Temperature 273 | . 33 13 . 273 Average Temperature 88 | . 19 13 . 97 Received Heat Transfer 396 | . 39 69 . 288 Effects 1 | . . . . 1 Energy Bleed 1 | . . . . 1 Siege Activations . | . . . . . Martial Activations . | . . . . . Shielding Activations . | . . . . . Robots Disrupted . | . . . . . Combat Hostiles . | . . . . . Robots Corrupted . | . . . . . Combat Hostiles . | . . . . . Parts Fried 1 | . . . . 1 Impact Corruptions . | . . . . . Robots Melted . | . . . . . Combat Hostiles . | . . . . . Parts Melted . | . . . . . Heat Transferred 296 | . . . . 296 Parts Sabotaged . | . . . . . Parts Stolen . | . . . . . Parts Stripped . | . . . . . Power Chain Reactions . | . . . . . Alert | -11 -10 -10 -9 -9 ------- Run | Yrd Mat Min Mat Sto Maximum Alert Level 3 | . . . . 3 Low Security (%) 81 | 100 100 100 100 56 Level 1 11 | . . . . 26 Level 2 4 | . . . . 10 Level 3 2 | . . . . 6 Level 4 . | . . . . . Level 5 . | . . . . . High Security . | . . . . . Max Security . | . . . . . Peak Influence 735 | . 152 95 36 735 Initial 50 | . . 50 . 10 Average 103 | . 88 23 13 183 Influence Increases 1348 | . 250 85 36 977 Destroy 0b10 Robot/C 700 | . 100 40 20 540 Destroy 0b10 Robot/NC 65 | . . 5 . 60 Destroy Leader 166 | . 20 10 10 126 Allied During Kill 53 | . . . . 53 Successful Hack 13 | . 8 . . 5 Disable Machine 120 | . 60 . . 60 Destroy Structure 111 | . 32 . 6 73 Lose Combat Pursuer 120 | . 30 30 . 60 Influence Decreases 631 | . 120 215 10 286 Entered New Map 96 | . . 80 . 16 Time Decay 385 | . 110 125 10 140 Lost Part 110 | . 10 10 . 90 Lost Ally 40 | . . . . 40 Squads Dispatched 6 | . . . . 6 Investigation . | . . . . . Extermination . | . . . . . Reinforcement 4 | . . . . 4 Assault 2 | . . . . 2 Garrison . | . . . . . Intercept . | . . . . . Searches Triggered . | . . . . . Construction Impeded 2 | . . . . 2 Haulers Reinforced . | . . . . . Active Scanning Responses . | . . . . . Cargo Convoy Interrupts . | . . . . . Stealth | -11 -10 -10 -9 -9 --------- Run | Yrd Mat Min Mat Sto Distress Signals 6 | . 1 2 . 3 Communications Jammed . | . . . . . Distress Signals . | . . . . . Times Spotted 52 | . 13 6 1 32 Peak Tracking Total 6 | . 4 4 1 6 Tactical Retreats 4 | . 1 1 . 2 Traps | -11 -10 -10 -9 -9 ------- Run | Yrd Mat Min Mat Sto Traps Triggered 5 | . 1 . . 4 Indirectly . | . . . . . Trap Hack Attempts . | . . . . . Triggered . | . . . . . Disarmed . | . . . . . Reprogrammed . | . . . . . Reused . | . . . . . Traps Extracted . | . . . . . Installed . | . . . . . Triggered . | . . . . . Machines | -11 -10 -10 -9 -9 ---------- Run | Yrd Mat Min Mat Sto Machines Disabled 8 | . 4 . . 4 Max in Single Turn 4 | . 4 . . 2 Machines Repaired . | . . . . . Machines Dismantled . | . . . . . Machines Sabotaged . | . . . . . Overloaded Fab Kills . | . . . . . Hacking | -11 -10 -10 -9 -9 --------- Run | Yrd Mat Min Mat Sto Machines Accessed 3 | . 1 . . 2 Terminals 3 | . 1 . . 2 Fabricators . | . . . . . Repair Stations . | . . . . . Recycling Units . | . . . . . Scanalyzers . | . . . . . Garrison Access . | . . . . . Total Hacks 12 | . 6 . . 6 Successful 10 | . 5 . . 5 Failed 2 | . 1 . . 1 Catastrophic 1 | . . . . 1 Database Lockouts . | . . . . . Manual . | . . . . . Terminals 12 | . 6 . . 6 Fabricators . | . . . . . Repair Stations . | . . . . . Recycling Units . | . . . . . Scanalyzers . | . . . . . Garrison Access . | . . . . . Terminal Hacks 10 | . 5 . . 5 Record 3 | . . . . 3 Robot Analysis 1 | . 1 . . . Prototype ID Bank 1 | . 1 . . . Open Door 1 | . . . . 1 Branch Access Points 1 | . 1 . . . Alert Level 1 | . 1 . . . Locate Traps 2 | . 1 . . 1 Fabricator Hacks . | . . . . . Repair Station Hacks . | . . . . . Recycling Unit Hacks . | . . . . . Scanalyzer . | . . . . . Garrison Access Hacks . | . . . . . Unauthorized Hacks . | . . . . . Terminals . | . . . . . Fabricators . | . . . . . Repair Stations . | . . . . . Recycling Units . | . . . . . Scanalyzers . | . . . . . Garrison Access . | . . . . . Data Cores Recovered . | . . . . . Used . | . . . . . Hacking Detections 2 | . 1 . . 1 Full Trace Events . | . . . . . Feedback Events . | . . . . . Feedback Blocked . | . . . . . Robot Schematics Acquired . | . . . . . Robots Built . | . . . . . Authchips . | . . . . . Time . | . . . . . Total Robot Build Rating . | . . . . . Part Schematics Acquired . | . . . . . Parts Built . | . . . . . Authchips . | . . . . . Time . | . . . . . Total Part Build Rating . | . . . . . Part Studies Acquired . | . . . . . Parts Repaired . | . . . . . Time . | . . . . . Parts Recycled . | . . . . . Recycled Matter . | . . . . . Retrieved Matter . | . . . . . Retrieved Components . | . . . . . Parts Scanalyzed . | . . . . . Part Schematics Acquired . | . . . . . Parts Damaged . | . . . . . Bothacking | -11 -10 -10 -9 -9 ------------ Run | Yrd Mat Min Mat Sto Used RIF Installer . | . . . . . Robots Hacked . | . . . . . Non-combat . | . . . . . Combat . | . . . . . Robot Hacks Applied . | . . . . . Relay Couplers Released . | . . . . . Fabnet Peak Effective % . | . . . . . Robots Rewired . | . . . . . Allies Hacked . | . . . . . Hacks Repelled . | . . . . . Allies | -11 -10 -10 -9 -9 -------- Run | Yrd Mat Min Mat Sto Total Allies 2 | . . . . 2 Largest Group 2 | . . . . 2 Highest-Rated Group 62 | . . . . 62 Highest-Rated Ally 31 | . . . . 31 Total Orders . | . . . . . Ally Attacks 49 | . . . . 49 Total Damage 722 | . . . . 722 Kills 13 | . . . . 13 Allies Corrupted . | . . . . . Allies Melted . | . . . . . Intel | -11 -10 -10 -9 -9 ------- Run | Yrd Mat Min Mat Sto Active Infowar (turns) 331 | . . . . 331 Seismic 331 | . . . . 331 Robot Analysis Total 1 | . 1 . . . Derelict Logs Recovered 2 | . . 2 . . Drone Launches . | . . . . . Drone Recoveries . | . . . . . Exploration | -11 -10 -10 -9 -9 ------------- Run | Yrd Mat Min Mat Sto Turns Passed 1595 | 61 288 517 42 687 Spaces Moved 1028 | 48 227 415 36 302 Core 8 | 1 . . . 7 Treads . | . . . . . Legs 124 | . . . . 124 Wheels 893 | 47 227 415 36 168 Hover . | . . . . . Flight 3 | . . . . 3 Fastest Speed 40 | 50 90 90 100 40 Average Speed 98 | 89 90 97 100 106 Slowest Speed 190 | 100 90 100 100 190 Overloaded Moves . | . . . . . Propulsion Burnouts . | . . . . . Robots Hopped . | . . . . . Potential Cave-ins . | . . . . . Cave-ins Triggered . | . . . . . Exploration Rate (%) 40 | 3 52 88 4 57 Regions Visited 4 Branch Regions 2 Pre-discovered Areas 3 | . . 2 . 1 Known Exits Taken 1 | . 1 . . . Unknown Exits Taken 3 | 1 . 1 1 . Scrap Searched . | . . . . . Spaces Dug . | . . . . . Terrain Destroyed 129 | . 41 . 6 82 Melee . | . . . . . Projectile 2 | . . . . 2 AOE 127 | . 41 . 6 80 Terrain Rammed . | . . . . . Walls Destroyed . | . . . . . Machines Disabled . | . . . . . Actions | -11 -10 -10 -9 -9 --------- Run | Yrd Mat Min Mat Sto Total 1487 | 65 276 502 39 605 Wait 297 | . 12 66 . 219 Move 1024 | 47 226 414 35 302 Hop . | . . . . . Pick Up 39 | 12 8 3 2 14 Fast Attach 4 | . 1 . . 3 Attach 20 | 6 1 2 . 11 Detach . | . . . . . Swap 13 | . 4 3 . 6 Drop 10 | . 6 2 . 2 Fire 72 | . 18 12 2 40 Melee . | . . . . . Ram . | . . . . . Kick 1 | . . . . 1 Crush . | . . . . . Escape Stasis 7 | . . . . 7 Rewire . | . . . . . Trap . | . . . . . Miscellaneous . | . . . . . Route ------- -11/Scrapyard -10/Materials (discovered 2 exits: *Min x2) -10/Mines -9/Materials -9/Storage History --------- Turn | Location | Event 31 | -11/Scrapyard | Discovered new exit (range 15) 62 | -11/Scrapyard | Entered Materials 311 | -10/Materials | Build established: Mutant 333 | -10/Materials | Identified exit to Mines 350 | -10/Materials | Entered Mines 357 | -10/Mines | Learned location of Zion (-7) 375 | -10/Mines | Assembled infested the area 380 | -10/Mines | Assisted by a Guerilla fighting off Assembled 416 | -10/Mines | Core integrity fell below 50% 697 | -10/Mines | YI-UF0 nonchalantly dropped a Grenade Launcher on the ground 862 | -10/Mines | Discovered new exit (range 3) 867 | -10/Mines | Entered Materials 867 | -9/Materials | Evolved 2 slots: Propulsion x2 888 | -9/Materials | Discovered new exit (range 11) 909 | -9/Materials | Entered Storage 919 | -9/Storage | Learned location of Armory (-4) 1243 | -9/Storage | Met a pair of Derelict thieves 1341 | -9/Storage | Core integrity fell below 50% 1369 | -9/Storage | Lost 6 parts (1p1n1u3w) 1574 | -9/Storage | Destroyed 13 combat bots 1590 | -9/Storage | Released all parts (8) 1593 | -9/Storage | Core integrity fell below 20% 1596 | -9/Storage | Destroyed by G-34 Mercenary with Small Laser Last Messages --------------- The unstable cave ceiling collapses. U-05 Engineer lays Concrete. The unstable cave ceiling collapses. G-34 Mercenary destroyed. Triggered Explosive Trap. An explosion rips through the floor. Grenade Launcher destroyed. Triggered Explosive Trap. An explosion rips through the floor. Released Aluminum Leg. Released Med. Storage Unit. Released Imp. Ion Engine. Released Imp. Aluminum Leg. Released Core Shielding. Released Aluminum Leg. Released Adv. Beam Cannon. Acquired Flight Unit. Flight Unit destroyed. Triggered Explosive Trap. An explosion rips through the floor. Map ----- +----------------------------------------------------+ | ???????????????????????????????? | | ???????????????????????????????? | | ???????????????????????????????? | | ???????????????????????????????? | | ???????????????????????????????? | | ???????????????????????????????? | | ???????????????????????????????? | | ???????????????????????????????? | | ???????????????????????????????? | | ???????????????????????????????? | | ???????????????????????????????? | | ???????????????????????????????? | | ??????? ???????????????????????? | | ??????? ##+###?????????????????? | | ?????#? +?????????????????? | | ?????# #?????????????????? | | ??#### #?????????????????? | | ? #?????????????????? | | +?????????????????? | | ""^ #?????????????????? | | ?# "T """ #?????????????????? | | #= ""^^""" #?????????????????? | | +%[ """ #?????????????????? | | # ################??? | | # g #??? | | g @ #??? | | # ##+## ##+#########Y ##?? | | # % # #?# #?? | | # / #?# g #?? | | # ### g #?? | | * "Y" =## #?? | | " !*## =! ##?? | | [ !=!%###==] #??? | | # [ ]* # ###?#=! #??? | | ## * % #####???#== #??? | | ## ## #???????#*= #??? | | % = * #???????# #??? | | ## *% !=????# #??? | | # =%= !=????# #??? | | #### [ # !=????# #??? | | ???## + ???# #??? | | ????# # ???# #??? | | ????# ######## ##??########??? | | ????# #????????#?????????????? | | ????# #??????????????????????? | | ????# #??????????????????????? | | ????# #??????????????????????? | | ????+ #??????????????????????? | | ????# ???????????????????????? | | ????? ???????????????????????? | +----------------------------------------------------+ Best States ------------- Heat Dissipation 39 Energy Generation 12 Energy Capacity 265 Matter Stores 300 Matter Capacity 300 Sight Range 16 Terrain Scan Density 10 Armor Coverage 150 Core Shielding 20 Evasion (%) 55 Targeting Accuracy 5 Item Schematics ----------------- None Robot Schematics ------------------ None Fabricated ------------ Nothing Repaired ---------- Nothing Studied --------- None Alien Tech Used ----------------- None Achievements -------------- Bumper Bots For Emergencies Only Loot Pinata Resistances Are Futile Challenges ------------ None Game ------ Seed HackingTractorChargecaster Manual? 0 Play Time 00:35:38 Cumulative 9.3 hours Start 2026.02.02 @ 19:48:24 End 2026.02.02 @ 20:23:44 Sessions 1 Manual Loads 0 Difficulty Rogue Special Mode None Game No. 8 Rogue 8 Adventurer 0 Explorer 0 Win Type - Total 0 Types 0/0/0/0/0/0/0/0/0/0 Lore% 7 Gallery% 11 Achievement% 9 Wizard Run 0 Options --------- Layout 1 ASCII 0 Keyboard 0 Movement Mouse Keybinds 0 Fullscreen 1 Font 24/Smallcaps Map View 50x35 Zoom Use 0% Tactical HUD 0 Map Filters NONE Filters NONE Steam 0 RUN: a54ae3a1-87b3-4768-88e2-971b2960342b